bitfinex/quotes_BTCUSD_20240823
["timestamp","ask_amount","ask_price","bid_price","bid_amount"]
[1724447463001,0.003,63815.0,63814.0,0.9290325]
[1724447463192,0.003,63815.0,63814.0,0.92974531]
[1724447463856,0.003,63815.0,63814.0,0.92987677]
[1724447465342,0.0275655,63815.0,63814.0,0.92987677]
[1724447466089,0.03573617,63815.0,63814.0,0.93013197]
[1724447466449,0.03573617,63815.0,63814.0,0.92974531]
[1724447467286,0.03573617,63815.0,63814.0,0.9290325]
[1724447467489,0.03573617,63815.0,63814.0,0.92974531]
[1724447468321,0.03573617,63815.0,63814.0,0.6156225]
[1724447468926,0.03573617,63815.0,63814.0,0.2379125]
[1724447469065,0.03573617,63815.0,63814.0,0.0812075]
[1724447469471,0.03573617,63815.0,63814.0,0.2379125]
[1724447472094,0.03573617,63815.0,63814.0,0.5513225]
[1724447472678,0.03573617,63815.0,63814.0,0.55145396]
[1724447472883,0.03573617,63815.0,63814.0,0.5513225]
[1724447473094,0.03573617,63815.0,63814.0,0.55145396]
[1724447473513,0.03573617,63815.0,63814.0,0.5513225]
[1724447473932,0.03656217,63815.0,63814.0,0.55203531]
[1724447474828,0.03656217,63815.0,63814.0,0.55216677]
[1724447475063,0.03656217,63815.0,63814.0,0.86544531]
[1724447475171,0.03656217,63815.0,63814.0,0.86557677]
[1724447475372,0.03656217,63815.0,63814.0,0.86544531]
[1724447476274,0.03656217,63815.0,63814.0,0.55203531]
[1724447476480,0.03656217,63815.0,63814.0,1.24288677]
[1724447476680,0.03656217,63815.0,63814.0,1.24314197]
[1724447476681,0.0283915,63815.0,63814.0,1.24314197]
[1724447477727,0.0263915,63815.0,63814.0,1.55655197]
[1724447477921,0.0273915,63815.0,63814.0,1.55655197]
[1724447478311,0.0283915,63815.0,63814.0,1.55655197]
[1724447478826,0.0263915,63815.0,63814.0,1.55655197]
[1724447479219,0.0273915,63815.0,63814.0,1.55655197]
[1724447479440,0.0253915,63815.0,63814.0,1.55655197]
[1724447479650,0.0263915,63815.0,63814.0,1.55655197]
[1724447480702,0.0273915,63815.0,63814.0,1.55655197]
[1724447481139,0.002826,63815.0,63814.0,1.55655197]
[1724447486569,0.002826,63815.0,63814.0,1.72055495]
[1724447487204,0.002826,63815.0,63814.0,3.53396495]
[1724447488942,0.002826,63815.0,63814.0,3.53496495]
[1724447489318,0.002826,63815.0,63814.0,3.53396495]
[1724447495287,0.002826,63815.0,63814.0,3.22055495]
[1724447496255,0.002826,63815.0,63814.0,3.53396495]
[1724447496458,0.000826,63820.0,63819.0,0.00209947]
[1724447496632,0.000826,63820.0,63819.0,1.72707229]
[1724447497015,0.000826,63820.0,63819.0,2.04045829]
[1724447497218,0.000826,63820.0,63819.0,3.54045829]
[1724447497415,0.000826,63820.0,63819.0,2.04045829]
[1724447497621,0.001826,63820.0,63819.0,2.04045829]
[1724447497816,0.002826,63820.0,63819.0,2.04045829]
[1724447501615,0.002826,63820.0,63819.0,1.72293945]
[1724447502648,0.002826,63820.0,63819.0,1.09795047]
[1724447502857,0.02738682,63820.0,63819.0,1.09795047]
[1724447503060,0.02738682,63820.0,63819.0,0.78417781]
[1724447503873,0.02638682,63820.0,63819.0,0.78417781]
[1724447504238,0.02538682,63820.0,63819.0,0.79217781]
[1724447504435,0.02538682,63820.0,63819.0,0.79317781]
[1724447504865,0.02538682,63820.0,63819.0,0.78517781]
[1724447505204,0.02538682,63820.0,63819.0,0.78717781]
[1724447505788,0.3343898,63820.0,63819.0,0.003]
[1724447506218,0.4343898,63820.0,63819.0,0.003]
[1724447506847,0.4343898,63820.0,63814.0,0.0009075]
[1724447506998,0.680653,63819.0,63814.0,0.0009075]
[1724447507211,0.0823,63818.0,63814.0,0.0009075]
[1724447507418,0.16400298,63817.0,63814.0,0.0009075]
[1724447507885,0.08330002,63816.0,63814.0,0.0009075]
[1724447508018,0.16400298,63815.0,63814.0,0.0029075]
[1724447508427,0.16400298,63815.0,63814.0,0.0059075]
[1724447508632,0.16400298,63815.0,63814.0,0.0029075]
[1724447509039,0.165003,63815.0,63814.0,0.0029075]
[1724447509294,0.165003,63815.0,63814.0,0.0009075]
[1724447509720,0.165003,63815.0,63814.0,0.0059075]
[1724447509907,0.165003,63815.0,63814.0,0.0099075]
[1724447510110,0.165003,63815.0,63814.0,0.0049075]
[1724447510308,0.165003,63815.0,63814.0,0.0009075]
[1724447510482,0.228703,63815.0,63814.0,0.0079075]
[1724447511036,0.229703,63815.0,63814.0,0.0159075]
[1724447511404,0.22870298,63815.0,63814.0,0.0159075]
[1724447517388,0.30520298,63815.0,63814.0,0.0159075]
[1724447520120,0.002,63815.0,63814.0,0.48686677]
[1724447520351,0.002,63815.0,63814.0,0.94363197]
[1724447520795,0.002,63815.0,63814.0,1.25704197]
[1724447525150,0.002,63815.0,63814.0,1.57045197]
[1724447526025,0.001,63815.0,63814.0,1.72645495]
[1724447526259,0.001,63815.0,63814.0,1.71945495]
[1724447526391,0.000826,63816.0,63815.0,1.48950866]
[1724447527770,0.001826,63816.0,63815.0,1.50250866]
[1724447528936,0.001826,63816.0,63815.0,1.51550866]
[1724447529620,0.001826,63816.0,63815.0,1.51622147]
[1724447533759,0.001826,63816.0,63815.0,1.58272147]
[1724447535835,0.001826,63816.0,63815.0,1.26931647]
[1724447536589,0.001826,63816.0,63815.0,0.81022481]
[1724447536818,0.001826,63816.0,63815.0,0.81035627]
[1724447536989,0.001826,63816.0,63815.0,0.81061147]
[1724447537578,0.001826,63816.0,63815.0,1.12401647]
[1724447538845,0.001826,63816.0,63815.0,0.81022481]
[1724447539042,0.001826,63816.0,63815.0,1.12401647]
[1724447542876,0.001826,63816.0,63815.0,1.12362981]
[1724447543639,0.001826,63816.0,63815.0,1.12376127]
[1724447543866,0.001826,63816.0,63815.0,1.12401647]
[1724447544980,0.001826,63816.0,63815.0,1.12362981]
[1724447545175,0.001826,63816.0,63815.0,1.12376127]
[1724447545387,0.001826,63816.0,63815.0,1.12466987]
[1724447547206,0.001826,63816.0,63815.0,1.12492507]
[1724447547587,0.001826,63816.0,63815.0,1.12466987]
[1724447547994,0.001826,63816.0,63815.0,1.12453841]
[1724447548398,0.001826,63816.0,63815.0,1.12466987]
[1724447548718,0.001826,63816.0,63815.0,1.12453841]
[1724447548930,0.061926,63816.0,63815.0,0.0269086]
[1724447549138,0.061926,63816.0,63815.0,0.4970156]
[1724447550375,0.061926,63816.0,63815.0,0.8104206]
[1724447552074,0.061926,63816.0,63815.0,0.7974206]
[1724447552487,0.062926,63816.0,63815.0,0.8094206]
[1724447553031,0.061926,63816.0,63815.0,0.7964206]
[1724447553463,0.062926,63816.0,63815.0,0.8084206]
[1724447559631,0.062926,63816.0,63815.0,0.1816106]
[1724447559632,0.145126,63816.0,63815.0,0.1816106]
[1724447559778,0.145126,63816.0,63815.0,0.4950156]
[1724447559980,0.145126,63816.0,63815.0,0.0249086]
[1724447560193,0.580779,63816.0,63815.0,0.0249086]
[1724447560563,1.17878055,63816.0,63815.0,0.0249086]
[1724447560825,1.31862544,63816.0,63815.0,0.0249086]
[1724447561022,1.53829682,63816.0,63815.0,0.0249086]
[1724447561258,0.16060253,63815.0,63814.0,0.0009075]
[1724447561427,0.942912,63815.0,63814.0,0.0009075]
[1724447561571,1.06465356,63815.0,63814.0,0.0009075]
[1724447562178,1.37805856,63815.0,63814.0,0.0009075]
[1724447563185,1.36594948,63815.0,63814.0,0.0009075]
[1724447563414,1.36598294,63815.0,63814.0,0.0009075]
[1724447563794,1.37998294,63815.0,63814.0,0.0009075]
[1724447564221,1.49712143,63815.0,63814.0,0.0009075]
[1724447564433,1.51112143,63815.0,63814.0,0.0009075]
[1724447565249,1.82452643,63815.0,63814.0,0.0009075]
[1724447565424,1.82452643,63815.0,63789.0,0.02457014]
[1724447565425,0.00086854,63795.0,63789.0,0.02457014]
[1724447565623,0.27165002,63790.0,63789.0,0.02457014]
[1724447565851,0.0662,63789.0,63786.0,0.0009075]
[1724447566057,0.18700298,63788.0,63786.0,0.0009075]
[1724447566436,0.1,63787.0,63786.0,0.0009075]
[1724447566633,0.26400298,63787.0,63786.0,0.0009075]
[1724447567061,0.02458066,63790.0,63787.0,0.00071281]
[1724447567263,0.02458066,63790.0,63786.0,0.00129416]
[1724447567264,0.02458066,63790.0,63789.0,0.55159847]
[1724447567464,0.02458066,63790.0,63789.0,1.55409747]
[1724447568425,0.02558066,63790.0,63789.0,1.55409747]
[1724447569706,0.02658066,63790.0,63789.0,1.55409747]
[1724447570123,0.02658066,63790.0,63789.0,1.24056447]
[1724447573146,0.02658066,63790.0,63789.0,1.24017781]
[1724447573400,0.02658066,63790.0,63789.0,1.24030927]
[1724447574609,0.02658066,63790.0,63789.0,1.24056447]
[1724447577573,0.02658066,63790.0,63789.0,1.24017781]
[1724447577808,0.02658066,63790.0,63789.0,1.24030927]
[1724447578737,0.02658066,63790.0,63789.0,1.24056447]
[1724447580345,0.02458066,63790.0,63789.0,1.24056447]
[1724447580983,0.02458066,63790.0,63789.0,1.24147307]
[1724447581368,0.02558066,63790.0,63789.0,1.24147307]
[1724447581689,0.02658066,63790.0,63789.0,1.24147307]
[1724447582891,0.02558066,63790.0,63789.0,1.24147307]
[1724447583707,0.02558066,63790.0,63789.0,1.24847307]
[1724447584134,0.02558066,63790.0,63789.0,1.24147307]
[1724447585115,0.02558066,63790.0,63789.0,1.24647307]
[1724447586101,0.02458066,63790.0,63789.0,1.24647307]
[1724447586710,0.02458066,63790.0,63789.0,1.24147307]
[1724447587900,0.02458066,63790.0,63789.0,1.24347307]
[1724447588131,0.02458066,63790.0,63789.0,1.24147307]
[1724447588484,0.02458066,63790.0,63789.0,1.24347307]
[1724447592563,0.02458066,63790.0,63789.0,0.61602041]
[1724447592792,0.02458066,63790.0,63789.0,0.00362141]
[1724447592994,0.08718066,63790.0,63789.0,0.0029086]
[1724447593216,0.08718066,63790.0,63789.0,0.0009086]
[1724447593602,0.08718066,63790.0,63789.0,0.0019086]
[1724447593930,0.08718066,63790.0,63789.0,0.0009086]
[1724447594155,0.08718066,63790.0,63789.0,0.0019086]
[1724447594680,0.26844313,63790.0,63789.0,0.0019086]
[1724447595457,0.26944315,63790.0,63789.0,0.0019086]
[1724447596003,0.27244315,63790.0,63789.0,0.0019086]
[1724447596136,0.27144313,63790.0,63789.0,0.0019086]
[1724447596349,0.27144313,63790.0,63789.0,0.0009086]
[1724447596543,0.25118364,63790.0,63789.0,0.0009086]
[1724447596754,0.26118364,63790.0,63789.0,0.00104006]
[1724447597013,0.25618364,63790.0,63789.0,0.00104006]
[1724447597333,0.26318364,63790.0,63789.0,0.00104006]
[1724447597531,0.25618364,63790.0,63789.0,0.00104006]
[1724447598185,0.25118364,63790.0,63789.0,0.00104006]
[1724447598547,0.26718364,63790.0,63789.0,0.0009086]
[1724447599533,0.26718364,63790.0,63789.0,0.00104006]
[1724447601239,0.26718364,63790.0,63789.0,0.0009086]
[1724447604721,0.26718364,63790.0,63789.0,0.00129526]
[1724447604923,0.20458364,63790.0,63789.0,0.00129526]
[1724447605186,0.20458364,63790.0,63789.0,0.47159426]
[1724447605396,0.20458364,63790.0,63789.0,0.1576746]
[1724447605593,0.20458364,63790.0,63789.0,0.15780606]
[1724447605764,0.20458364,63790.0,63789.0,0.1576746]
[1724447605963,0.20458364,63790.0,63789.0,0.15780606]
[1724447606371,0.20458364,63790.0,63789.0,0.15806126]
[1724447609417,0.20458364,63790.0,63789.0,0.00129526]
[1724447611872,0.20458364,63790.0,63789.0,0.0009086]
[1724447612107,0.20458364,63790.0,63789.0,0.00104006]
[1724447612372,0.20458364,63790.0,63789.0,0.00129526]
[1724447613455,0.20458364,63790.0,63789.0,0.15806126]
[1724447615716,0.20458364,63790.0,63789.0,0.1576746]
[1724447616319,0.20458364,63790.0,63789.0,0.0009086]
[1724447616734,0.04058066,63790.0,63789.0,0.4712076]
[1724447616939,0.04058066,63790.0,63789.0,0.1576746]
[1724447617770,0.04058066,63790.0,63789.0,0.4712076]
[1724447618599,0.04058066,63790.0,63789.0,0.47133906]
[1724447619824,0.04058066,63790.0,63789.0,0.4712076]
[1724447620052,0.04058066,63790.0,63789.0,0.1576746]
[1724447620475,0.04058066,63790.0,63789.0,0.4712076]
[1724447620885,0.04058066,63790.0,63789.0,0.47133906]
[1724447621348,0.04058066,63790.0,63789.0,0.47159426]
[1724447622879,0.04058066,63790.0,63789.0,0.4712076]
[1724447623079,0.04058066,63790.0,63789.0,0.47159426]
[1724447624066,0.04058066,63790.0,63789.0,0.78512726]
[1724447624709,0.04058066,63790.0,63789.0,0.7847406]
[1724447625121,0.04058066,63790.0,63789.0,1.55185087]
[1724447625333,0.04058066,63790.0,63789.0,1.71610905]
[1724447625539,0.016,63790.0,63789.0,2.03466237]
[1724447625746,0.07123793,63815.0,63813.0,0.23565127]
[1724447625747,0.000826,63815.0,63813.0,0.23565127]
[1724447625960,0.000826,63815.0,63813.0,0.86248127]
[1724447626171,0.000826,63815.0,63813.0,0.54906627]
[1724447626605,0.000826,63815.0,63813.0,0.86248127]
[1724447626815,0.000826,63815.0,63813.0,0.86234981]
[1724447627215,0.000826,63815.0,63813.0,0.86248127]
[1724447627388,0.008826,63814.0,63813.0,0.86248127]
[1724447627592,0.000826,63814.0,63813.0,0.86248127]
[1724447628004,0.002826,63814.0,63813.0,0.86234981]
[1724447628357,0.006826,63814.0,63813.0,0.54893481]
[1724447628484,0.000826,63814.0,63813.0,0.54893481]
[1724447628690,0.000826,63814.0,63813.0,0.86234981]
[1724447629155,0.000826,63814.0,63813.0,0.86248127]
[1724447629359,0.003826,63814.0,63813.0,0.86248127]
[1724447629762,0.007826,63814.0,63813.0,0.86248127]
[1724447629978,0.003826,63814.0,63813.0,0.86273647]
[1724447630193,0.003826,63814.0,63813.0,0.86234981]
[1724447630775,0.003826,63814.0,63813.0,0.86248127]
[1724447630973,0.005826,63814.0,63813.0,0.86273647]
[1724447631182,0.02739357,63814.0,63813.0,0.86273647]
[1724447631380,0.02739357,63814.0,63813.0,0.86248127]
[1724447631697,0.02939357,63814.0,63813.0,0.86348127]
[1724447632054,0.02939357,63814.0,63813.0,0.86273647]
[1724447632260,0.02939357,63814.0,63813.0,0.86234981]
[1724447632485,0.02939357,63814.0,63813.0,0.54893481]
[1724447632927,0.02939357,63814.0,63813.0,0.86248127]
[1724447633271,0.02539357,63814.0,63813.0,0.86248127]
[1724447633709,0.01871965,63814.0,63813.0,0.86248127]
[1724447635185,0.01871965,63814.0,63813.0,0.86234981]
[1724447636393,0.01871965,63814.0,63813.0,0.86248127]
[1724447636839,0.01871965,63814.0,63813.0,0.86234981]
[1724447637235,0.01871965,63814.0,63813.0,0.86248127]
[1724447637440,0.01871965,63814.0,63813.0,0.86234981]
[1724447637843,0.01871965,63814.0,63813.0,0.86248127]
[1724447638405,0.01871965,63814.0,63813.0,0.86273647]
[1724447640930,0.01954565,63814.0,63813.0,0.86273647]
[1724447643327,0.01954565,63814.0,63813.0,1.17615147]
[1724447643527,0.01954565,63814.0,63813.0,0.86273647]
[1724447644307,0.01954565,63814.0,63813.0,0.86234981]
[1724447644415,0.18454865,63814.0,63808.0,0.0789]
[1724447644623,0.18454865,63814.0,63805.0,0.06271281]
[1724447644624,0.0809,63812.0,63811.0,0.156712]
[1724447644823,0.24490298,63812.0,63807.0,0.313444]
[1724447645020,0.0809,63812.0,63810.0,0.156714]
[1724447645423,0.0809,63812.0,63810.0,0.156713]
[1724447645626,0.0809,63812.0,63811.0,0.156712]
[1724447646495,0.0809,63812.0,63809.0,0.313434]
[1724447646630,0.0809,63812.0,63810.0,0.156715]
[1724447646839,0.0859,63812.0,63811.0,0.157712]
[1724447647270,0.24990298,63812.0,63811.0,0.157712]
[1724447647467,0.24990298,63812.0,63811.0,0.001]
[1724447648062,0.249903,63812.0,63810.0,0.156714]
[1724447648268,0.16400298,63811.0,63810.0,0.156715]
[1724447648867,0.16400298,63811.0,63810.0,0.001]
[1724447648868,0.335103,63811.0,63810.0,0.001]
[1724447649072,0.43410298,63811.0,63810.0,0.001]
[1724447650148,0.43410298,63811.0,63804.0,0.15711566]
[1724447650398,0.43410298,63811.0,63804.0,0.156729]
[1724447650399,0.12400002,63810.0,63804.0,0.156729]
[1724447650605,0.16400298,63809.0,63804.0,0.156729]
[1724447650804,0.02400002,63808.0,63804.0,0.156729]
[1724447651010,0.16400298,63807.0,63804.0,0.156729]
[1724447651214,0.1,63806.0,63804.0,0.156729]
[1724447651416,0.16400298,63805.0,63804.0,0.156729]
[1724447651686,0.26400298,63805.0,63804.0,0.156729]
[1724447653448,0.27100298,63805.0,63804.0,0.156729]
[1724447653644,0.27600298,63805.0,63802.0,0.313469]
[1724447654001,0.27600298,63805.0,63803.0,0.15673]
[1724447654002,0.00100002,63804.0,63803.0,0.15673]
[1724447654208,0.00100002,63804.0,63801.0,0.156735]
[1724447654209,0.165003,63804.0,63801.0,0.156735]
[1724447654360,0.22490298,63803.0,63801.0,0.156735]
[1724447654556,0.22490298,63803.0,63802.0,0.156734]
[1724447654948,0.22490298,63803.0,63800.0,0.31360946]
[1724447655149,0.22490298,63803.0,63801.0,0.15686646]
[1724447655351,0.22490298,63803.0,63801.0,0.156735]
[1724447656176,0.22490298,63803.0,63800.0,0.156739]
[1724447656493,0.00100002,63802.0,63797.0,0.313493]
[1724447656697,0.16400298,63801.0,63797.0,0.313493]
[1724447656905,0.16400298,63801.0,63800.0,0.156739]
[1724447658310,0.16500298,63801.0,63800.0,0.156739]
[1724447659276,0.16700298,63801.0,63800.0,0.156739]
[1724447661865,0.16700298,63801.0,63799.0,0.156741]
[1724447662063,0.023,63800.0,63795.0,0.15675]
[1724447662263,0.165003,63799.0,63796.0,0.156747]
[1724447662653,0.16400298,63799.0,63796.0,0.156747]
[1724447662869,0.16400298,63799.0,63794.0,0.00013146]
[1724447662870,0.18957829,63799.0,63794.0,0.00013146]
[1724447663048,0.18957829,63799.0,63794.0,0.15688346]
[1724447663599,0.18957829,63799.0,63795.0,0.156752]
[1724447663980,0.19857829,63799.0,63794.0,0.15688546]
[1724447664164,0.19857829,63799.0,63794.0,0.156754]
[1724447664392,0.19757829,63799.0,63794.0,0.156754]
[1724447664598,0.20657829,63799.0,63794.0,0.156754]
[1724447664759,0.20657829,63799.0,63795.0,0.15675]
[1724447664970,0.20657829,63799.0,63789.0,0.02547282]
[1724447664971,0.43594019,63797.0,63789.0,0.02547282]
[1724447665171,0.14290002,63796.0,63789.0,0.0009086]
[1724447665372,0.28700298,63795.0,63789.0,0.0009086]
[1724447665580,0.00100002,63794.0,63789.0,0.0009086]
[1724447665911,0.16400298,63793.0,63789.0,0.0009086]
[1724447666135,0.123,63792.0,63789.0,0.0009086]
[1724447666312,0.16400298,63791.0,63789.0,0.0009086]
[1724447666516,0.1,63790.0,63789.0,0.0009086]
[1724447666694,0.26400298,63790.0,63789.0,0.0009086]
[1724447668502,0.26400298,63790.0,63789.0,0.1576746]
[1724447670960,0.26400298,63790.0,63789.0,0.4712076]
[1724447671183,0.26400298,63790.0,63789.0,0.1576746]
[1724447674524,0.26400298,63790.0,63789.0,0.4712076]
[1724447674952,0.26400298,63790.0,63789.0,0.1576746]
[1724447675549,0.26400298,63790.0,63789.0,0.4712076]
[1724447675758,0.26400298,63790.0,63789.0,0.1576746]
[1724447675955,0.26400298,63790.0,63789.0,0.4712076]
[1724447676377,0.26400298,63790.0,63789.0,0.1576746]
[1724447676913,0.26400298,63790.0,63789.0,0.4712076]
[1724447677388,0.26400298,63790.0,63789.0,0.1576746]
[1724447678089,0.40069017,63790.0,63789.0,0.0009086]
[1724447678300,0.48262663,63790.0,63789.0,0.0009086]
[1724447678421,0.43581439,63790.0,63789.0,0.0009086]
[1724447678624,0.48263551,63790.0,63789.0,0.0009086]
[1724447678850,0.48263551,63790.0,63789.0,1e-08]
[1724447678851,0.50603276,63790.0,63789.0,1e-08]
[1724447679257,0.42369017,63790.0,63789.0,1e-08]
[1724447679455,0.44581466,63790.0,63789.0,1e-08]
[1724447679654,0.44581472,63790.0,63789.0,1e-08]
[1724447679859,0.45881472,63790.0,63789.0,1e-08]
[1724447680085,0.43581472,63790.0,63789.0,1e-08]
[1724447680472,0.46381472,63790.0,63789.0,1e-08]
[1724447680699,0.45169017,63790.0,63789.0,1e-08]
[1724447681063,0.43769017,63790.0,63789.0,1e-08]
[1724447681697,0.42369017,63790.0,63789.0,1e-08]
[1724447681891,0.51792994,63790.0,63789.0,1e-08]
[1724447682101,0.53092994,63790.0,63789.0,1e-08]
[1724447682481,0.51792994,63790.0,63789.0,1e-08]
[1724447682863,0.45169017,63790.0,63789.0,1e-08]
[1724447685392,0.43769017,63790.0,63789.0,1e-08]
[1724447685693,0.45369017,63790.0,63789.0,1e-08]
[1724447685894,0.45169017,63790.0,63789.0,1e-08]
[1724447686105,0.43769017,63790.0,63789.0,1e-08]
[1724447687026,0.45169017,63790.0,63789.0,1e-08]
[1724447687854,0.37539017,63790.0,63789.0,1e-08]
[1724447688243,0.36139017,63790.0,63789.0,1e-08]
[1724447689054,0.37539017,63790.0,63789.0,1e-08]
[1724447689262,0.36139017,63790.0,63789.0,1e-08]
[1724447689639,0.30129017,63790.0,63789.0,1e-08]
[1724447690287,0.31500298,63790.0,63789.0,1e-08]
[1724447690466,0.19200298,63790.0,63789.0,0.60649901]
[1724447690876,0.19200298,63790.0,63789.0,0.29296601]
[1724447691351,0.19200298,63790.0,63789.0,0.60649901]
[1724447691568,0.17800298,63790.0,63789.0,0.60663047]
[1724447691771,0.16400298,63790.0,63789.0,0.60663047]
[1724447691946,0.16400298,63790.0,63789.0,0.29309747]
[1724447692197,0.19000298,63790.0,63789.0,0.60663047]
[1724447692345,0.17800298,63790.0,63789.0,0.60688567]
[1724447692553,0.27800298,63790.0,63789.0,0.60688567]
[1724447692763,0.28900298,63790.0,63789.0,0.60688567]
[1724447693422,0.26400298,63790.0,63789.0,0.60649901]
[1724447693778,0.27400298,63790.0,63789.0,0.60688567]
[1724447694184,0.27400298,63790.0,63789.0,0.60649901]
[1724447694385,0.27400298,63790.0,63789.0,0.29296601]
[1724447694928,0.28400298,63790.0,63789.0,0.29296601]
[1724447695272,0.27400298,63790.0,63789.0,0.29296601]
[1724447695605,0.26400298,63790.0,63789.0,0.13620001]
[1724447695825,0.28700298,63790.0,63789.0,0.29309747]
[1724447696028,0.28700298,63790.0,63789.0,0.13633147]
[1724447696029,0.30700298,63790.0,63789.0,0.13633147]
[1724447696181,0.29600298,63790.0,63789.0,0.13633147]
[1724447696388,0.27300298,63790.0,63789.0,0.13633147]
[1724447696593,0.28300298,63790.0,63789.0,0.13633147]
[1724447696794,0.28300298,63790.0,63789.0,0.60663047]
[1724447697824,0.27400298,63790.0,63789.0,0.60649901]
[1724447698229,0.29500298,63790.0,63789.0,0.60663047]
[1724447698432,0.27400298,63790.0,63789.0,0.60663047]
[1724447698585,0.26400298,63790.0,63789.0,0.60688567]
[1724447698787,0.27400298,63790.0,63789.0,0.60649901]
[1724447699073,0.28300298,63790.0,63789.0,0.60649901]
[1724447699414,0.28500298,63790.0,63789.0,0.60649901]
[1724447699614,0.27400298,63790.0,63789.0,0.60649901]
[1724447700057,0.28400298,63790.0,63789.0,0.60649901]
[1724447700222,0.28400298,63790.0,63789.0,0.60663047]
[1724447700396,0.28400298,63790.0,63789.0,0.60688567]
[1724447700603,0.28400298,63790.0,63789.0,0.60663047]
[1724447700905,0.28400298,63790.0,63789.0,0.29381028]
[1724447700906,0.02,63790.0,63789.0,0.29381028]
[1724447701016,0.02,63790.0,63789.0,0.92087628]
[1724447701242,0.02,63790.0,63789.0,1.23440928]
[1724447701243,0.01,63790.0,63789.0,1.23440928]
[1724447701470,0.02457824,63791.0,63790.0,0.78420666]
[1724447701699,0.02457824,63791.0,63790.0,1.22473466]
[1724447702172,0.02457824,63791.0,63790.0,1.22544747]
[1724447702610,0.02557824,63791.0,63790.0,1.22544747]
[1724447702812,0.02657824,63791.0,63790.0,1.22644747]
[1724447703228,0.02657824,63791.0,63790.0,1.22544747]
[1724447704103,0.02557824,63791.0,63790.0,1.22544747]
[1724447704301,0.02557824,63791.0,63790.0,1.23244747]
[1724447704573,0.02757824,63791.0,63790.0,1.24244747]
[1724447704813,0.02557824,63791.0,63790.0,1.23244747]
[1724447705018,0.02457824,63791.0,63790.0,1.22544747]
[1724447705177,0.02657824,63791.0,63790.0,1.23844747]
[1724447711362,0.02657824,63791.0,63790.0,1.55197547]
[1724447712405,0.02457824,63791.0,63790.0,1.53897547]
[1724447712824,0.02557824,63791.0,63790.0,1.55097547]
[1724447713834,0.02657824,63791.0,63790.0,1.55697547]
[1724447714391,0.02640424,63791.0,63790.0,1.55097547]
[1724447714835,0.02740424,63791.0,63790.0,1.56497547]
[1724447716723,0.002826,63791.0,63790.0,1.56497547]
[1724447718101,0.002826,63791.0,63790.0,1.56597547]
[1724447718297,0.002826,63791.0,63790.0,1.56797547]
[1724447718676,0.002826,63791.0,63790.0,1.56497547]
[1724447726207,0.002826,63791.0,63790.0,1.56588407]
[1724447731187,0.002826,63791.0,63790.0,1.56688407]
[1724447731394,0.002826,63791.0,63790.0,2.13924727]
[1724447731595,0.002826,63791.0,63790.0,2.2710682]
[1724447732001,0.000826,63805.0,63804.0,1.41140927]
[1724447732180,0.000826,63805.0,63804.0,1.55346447]
[1724447732589,0.000826,63805.0,63804.0,1.24000547]
[1724447733681,0.000826,63805.0,63804.0,1.25100547]
[1724447734208,0.000826,63805.0,63804.0,1.24000547]
[1724447734408,0.000826,63805.0,63804.0,1.26300547]
[1724447746107,0.000826,63805.0,63804.0,1.26500547]
[1724447746703,0.000826,63805.0,63804.0,1.26300547]
[1724447746844,0.000826,63805.0,63804.0,1.74146745]
[1724447747223,0.000826,63805.0,63804.0,1.79125168]
[1724447748054,0.000826,63805.0,63804.0,1.79025168]
[1724447748251,0.000826,63805.0,63804.0,1.79125168]
[1724447748451,0.000826,63805.0,63804.0,1.79025168]
[1724447749547,0.000826,63805.0,63804.0,1.74046745]
[1724447757276,0.000826,63805.0,63804.0,2.05692645]
[1724447757482,0.000826,63805.0,63804.0,2.15692645]
[1724447757743,0.000826,63805.0,63804.0,2.25350163]
[1724447757934,0.000826,63805.0,63804.0,2.28732582]
[1724447758072,0.000826,63805.0,63804.0,3.78732582]
[1724447758911,0.000826,63805.0,63804.0,3.77632582]
[1724447759428,0.000826,63805.0,63804.0,3.77832582]
[1724447759625,0.000826,63805.0,63804.0,3.81532582]
[1724447760391,0.000826,63812.0,63811.0,0.03609947]
[1724447760612,0.000826,63812.0,63811.0,2.36262236]
[1724447760841,0.04429911,63831.0,63830.0,1.09763001]
[1724447761043,0.04429911,63831.0,63830.0,1.09776147]
[1724447762106,0.0082032,63841.0,63833.0,1.09745327]
[1724447762337,0.55,63844.0,63837.0,0.47065781]
[1724447762458,0.0782,63842.0,63837.0,1.09738327]
[1724447763884,0.065126,63838.0,63837.0,1.09738327]
[1724447764314,0.065126,63838.0,63837.0,1.09763847]
[1724447764849,0.065126,63838.0,63837.0,1.09863847]
[1724447766066,0.000826,63838.0,63837.0,1.09863847]
[1724447767357,0.02538024,63838.0,63837.0,1.18023847]
[1724447767707,0.02538024,63838.0,63837.0,1.49314881]
[1724447767909,0.02538024,63838.0,63837.0,1.55403547]
[1724447768666,0.02538024,63838.0,63837.0,1.55303547]
[1724447769209,0.02538024,63838.0,63837.0,1.6028197]
[1724447769508,0.02538024,63838.0,63837.0,1.76782268]
[1724447769740,0.000826,63838.0,63837.0,2.08111968]
[1724447769941,0.000826,63838.0,63837.0,2.08711968]
[1724447770481,0.000826,63838.0,63837.0,2.08111968]
[1724447770684,0.000826,63838.0,63837.0,2.19311968]
[1724447770888,0.000826,63838.0,63837.0,2.18111968]
[1724447771088,0.000826,63838.0,63837.0,2.18011968]
[1724447771291,0.000826,63838.0,63837.0,2.19111968]
[1724447771850,0.000826,63838.0,63837.0,2.18011968]
[1724447772047,0.000826,63838.0,63837.0,2.19411968]
[1724447772255,0.000826,63838.0,63837.0,1.88082268]
[1724447772449,0.000826,63838.0,63837.0,1.83103845]
[1724447772652,0.000826,63838.0,63837.0,1.82903845]
[1724447772887,0.000826,63838.0,63837.0,1.83103845]
[1724447773290,0.000826,63838.0,63837.0,1.84503845]
[1724447775430,0.000826,63838.0,63837.0,2.15833545]
[1724447775584,0.000826,63838.0,63837.0,1.84503845]
[1724447778513,0.000826,63838.0,63837.0,2.11968847]
[1724447779115,0.000826,63838.0,63837.0,2.42998547]
[1724447779651,0.000826,63838.0,63837.0,1.84503845]
[1724447781847,0.000826,63838.0,63837.0,2.15833545]
[1724447782269,0.000826,63838.0,63837.0,1.84503845]
[1724447782469,0.000826,63838.0,63837.0,2.15833545]
[1724447782674,0.000826,63838.0,63837.0,1.84503845]
[1724447783036,0.000826,63838.0,63837.0,2.15833545]
[1724447783412,0.000826,63838.0,63837.0,1.84503845]
[1724447785022,0.000826,63838.0,63837.0,2.15833545]
[1724447785220,0.000826,63838.0,63837.0,1.78453845]
[1724447786373,0.000826,63838.0,63837.0,1.22563847]
[1724447789495,0.000826,63838.0,63837.0,1.62183547]
[1724447789698,0.000826,63838.0,63837.0,1.68753547]
[1724447790075,0.000826,63838.0,63837.0,1.62183547]